fUST/lending_fUST_20250820
["ID","MTS","AMOUNT","RATE_DAILY","PERIOD"]
[380337565,1755696638502,-612.92,0.0002198,3]
[380337568,1755696638511,-480.0,0.00021989,2]
[380337571,1755696638521,-480.0,0.00021989,2]
[380337573,1755696638530,-480.0,0.00021989,2]
[380337575,1755696638539,-480.0,0.00021989,2]
[380337577,1755696638548,-480.0,0.00021989,2]
[380337579,1755696638557,-480.0,0.00021989,2]
[380337581,1755696638566,-480.0,0.00021989,2]
[380337583,1755696638575,-480.0,0.00021989,2]
[380337585,1755696638584,-480.0,0.00021989,2]
[380337587,1755696638592,-1000.55433446,0.00021989,2]
[380337589,1755696638602,-100000.0,0.0002199,2]
[380337591,1755696638611,-1229.68,0.00022,7]
[380337593,1755696638620,-159.0,0.00022,2]
[380337595,1755696638629,-528.77847288,0.00022103,2]
[380337597,1755696638638,-160.0,0.00022104,2]
[380337599,1755696638647,-480.0,0.00022263,2]
[380337600,1755696638657,-529.78,0.00022263,2]
[380337602,1755696638667,-480.0,0.00022263,2]
[380337604,1755696638676,-480.0,0.00022263,2]
[380337606,1755696638685,-480.0,0.00022263,2]
[380337608,1755696638695,-480.0,0.00022263,2]
[380337610,1755696638704,-480.0,0.00022263,2]
[380337612,1755696638713,-480.0,0.00022263,2]
[380337614,1755696638729,-480.0,0.00022263,2]
[380337616,1755696638738,-300.0,0.00022429,20]
[380337618,1755696638747,-300.0,0.00022429,20]
[380337620,1755696638755,-367.6759429,0.00022521,2]
[380337622,1755696638768,-268.16,0.00022537,2]
[380337624,1755696638777,-480.0,0.00022537,2]
[380337626,1755696638787,-480.0,0.00022537,2]
[380337628,1755696638796,-480.0,0.00022537,2]
[380337630,1755696638805,-1799.77761887,0.00022637,2]
[380337632,1755696638815,-751.1478274,0.00022637,2]
[380337634,1755696638823,-244.10511837,0.00022706,2]
[380337636,1755696638833,-1216.35697958,0.000228,2]
[380337638,1755696638842,-5511.63354729,0.000228,2]
[380337640,1755696638851,-181.36,0.00022811,2]
[380337642,1755696638861,-480.0,0.00022811,2]
[380337644,1755696638870,-372.06806799,0.00022873,2]
[380337646,1755696638879,-500.2392676,0.00022873,2]
[380337648,1755696638889,-228.35503821,0.00022873,2]
[380337650,1755696638898,-493.15521029,0.00022873,2]
[380337652,1755696638907,-501.06231675,0.00022873,2]
[380337654,1755696638915,-501.64242346,0.00022873,2]
[380337656,1755696638925,-500.0,0.00022873,2]
[380337658,1755696638934,-507.05938576,0.00022873,2]
[380337660,1755696638943,-500.51423272,0.00022873,2]
[380337662,1755696638953,-444.41507152,0.00022873,2]
[380337664,1755696638962,-501.03677337,0.00022873,2]
[380337666,1755696638974,-500.0,0.00022873,2]
[380337668,1755696638983,-503.38329971,0.00022873,2]
[380337670,1755696638992,-172.01965017,0.00022873,2]
[380337672,1755696639001,-160.88306904,0.00022873,2]
[380337673,1755696639010,-464.79902668,0.00022873,2]
[380337676,1755696639019,-181.34004703,0.00022873,2]
[380337677,1755696639028,-309.70042856,0.00022873,2]
[380337679,1755696639038,-432.05615251,0.00022873,2]
[380337681,1755696639047,-500.0,0.00022873,2]
[380337683,1755696639056,-500.99347264,0.00022873,2]
[380337685,1755696639065,-500.0,0.00022873,2]
[380337687,1755696639074,-500.0,0.00022873,2]
[380337689,1755696639083,-500.0,0.00022873,2]
[380337691,1755696639091,-500.0,0.00022873,2]
[380337693,1755696639100,-500.0,0.00022873,2]
[380337695,1755696639110,-500.0,0.00022873,2]
[380337697,1755696639119,-500.0,0.00022873,2]
[380337699,1755696639128,-500.0,0.00022873,2]
[380337701,1755696639137,-500.0,0.00022873,2]
[380337703,1755696639148,-500.39775222,0.00022873,2]
[380337705,1755696639157,-500.0,0.00022873,2]
[380337707,1755696639166,-500.0,0.00022873,2]
[380337709,1755696639175,-284.70517059,0.00022873,2]
[380337711,1755696639184,-500.0,0.00022873,2]
[380337713,1755696639193,-500.0,0.00022873,2]
[380337715,1755696639203,-501.07752612,0.00022873,2]
[380337717,1755696639213,-500.0,0.00022873,2]
[380337719,1755696639224,-500.0,0.00022873,2]
[380337721,1755696639233,-500.0,0.00022873,2]
[380337723,1755696639242,-500.0,0.00022873,2]
[380337725,1755696639251,-500.0,0.00022873,2]
[380337727,1755696639261,-500.0,0.00022873,2]
[380337729,1755696639271,-480.0,0.00022889,2]
[380337731,1755696639280,-1524.53,0.00022889,2]
[380337733,1755696639289,-480.0,0.00022889,2]
[380337735,1755696639299,-1310.53,0.00022889,2]
[380337737,1755696639308,-370000.0,0.0002289,2]
[380337739,1755696639318,-1200.0,0.000229,2]
[380337741,1755696639327,-9082.81,0.000229,7]
[380337743,1755696639338,-26364.83,0.000229,2]
[380337745,1755696639348,-4863.47,0.000229,7]
[380337747,1755696639358,-12687.94051737,0.000229,7]
[380337749,1755696639368,-215.82729805,0.000229,7]
[380337751,1755696639378,-375.94359665,0.000229,7]
[380337753,1755696639387,-528.77847288,0.000229,7]
[380337754,1755696639396,-381.60456001,0.00022951,2]
[380337756,1755696639406,-158.7577131,0.00022989,2]
[380337759,1755696639416,-151.0,0.00022989,2]
[380337761,1755696639426,-151.0,0.00022989,2]
[380337762,1755696639435,-500.0,0.00022989,2]
[380337764,1755696639446,-151.0,0.00022989,2]
[380337766,1755696639455,-160.0,0.00023,2]
[380337768,1755696639464,-294.50621511,0.00023021,2]
[380337769,1755696639477,-208.0,0.00023148,2]
[380337770,1755696639486,-480.0,0.00023163,2]
[380337771,1755696639495,-1524.53,0.00023163,2]
[380337772,1755696639505,-480.0,0.00023163,2]
[380337773,1755696639515,-1310.53,0.00023163,2]
[380337774,1755696639525,-500.0,0.00023263,2]
[380337775,1755696639534,-151.0,0.00023263,2]
[380337776,1755696639544,-1216.35697957,0.00023265,2]
[380337777,1755696639553,-160.0,0.00023293,2]
[380337778,1755696639562,-844.05985274,0.00023293,2]
[380337779,1755696639571,-215.82729805,0.00023293,2]
[380337780,1755696639579,-216.9170744,0.00023293,2]
[380337781,1755696639589,-232.24568399,0.00023293,2]
[380337782,1755696639597,-375.94359665,0.00023293,2]
[380337783,1755696639606,-320.0,0.000233,6]
[380337784,1755696639615,-2305.44,0.0002335,3]
[380337785,1755696639624,-1152.72,0.0002335,3]
[380337786,1755696639633,-576.36,0.0002335,3]
[380337787,1755696639642,-980.64,0.0002335,3]
[380337788,1755696639651,-408.6,0.0002335,3]
[380337789,1755696639661,-173.0,0.00023362,5]
[380337790,1755696639670,-751.1478274,0.00023375,2]
[380337791,1755696639679,-279448.15502528,0.0002338,2]
[380337796,1755696639883,-5869.54978253,0.0002338,2]
[380337798,1755696639895,-11839.97006423,0.0002338,2]
[380337800,1755696639907,-9910.9561295,0.0002338,2]
[380337813,1755696639999,-5666.5,0.0002338,2]
[380337815,1755696640010,-283.85756455,0.0002338,2]
[380337817,1755696640022,-528.0,0.0002338,2]
[380337847,1755696640321,-68168.07141735,0.0002338,2]
[380337853,1755696640401,-304.2614001,0.0002338,2]
[380337855,1755696640414,-73263.31470463,0.0002338,2]
[380338667,1755696648672,17426.56570842,0.00027161,120]
[380339627,1755696668557,166.877545,0.00013699,2]
[380339628,1755696691810,670.75069381,0.000199,2]
[380339630,1755696874195,648.58867546,0.000199,2]
[380339631,1755697052367,626.97440182,0.000199,2]
[380339632,1755697218425,606.07525488,0.000199,2]
[380339633,1755697223004,3056.67,0.0002,2]
[380339634,1755697273789,33315.94713856,0.0002,2]
[380339635,1755697290814,9881.43141937,0.00018,2]
[380339636,1755697429181,220.26,0.00027397,120]
[380339637,1755697590720,166.877545,0.00013699,2]
[380339670,1755697705160,864.55173399,0.00015,2]
[380339684,1755697832575,-5000.0,0.00019701,2]
[380339685,1755697832584,-590.53190095,0.000199,2]
[380339686,1755697832593,-590.53190075,0.00020835,2]
[380339687,1755697832602,-590.53190075,0.00021771,2]
[380339688,1755697832611,-1200.0,0.00021987,2]
[380339689,1755697832621,-1200.0,0.00021988,2]
[380339690,1755697832631,-1397.48,0.00021989,2]
[380339691,1755697832640,-160.0,0.00022086,2]
[380339692,1755697832649,-844.05985274,0.00022086,2]
[380339693,1755697832659,-215.82729805,0.00022086,2]
[380339694,1755697832668,-232.24568399,0.00022086,2]
[380339695,1755697832678,-216.9170744,0.00022086,2]
[380339696,1755697832689,-375.94359665,0.00022086,2]
[380339697,1755697832699,-160.0,0.00022089,2]
[380339698,1755697832708,-480.0,0.00022101,2]
[380339699,1755697832845,-480.0,0.00022101,2]
[380339700,1755697832863,-312.88419696,0.00022101,2]
[380339701,1755697832873,-480.0,0.00022101,2]
[380339702,1755697832882,-480.0,0.00022101,2]
[380339703,1755697832892,-480.0,0.00022101,2]
[380339704,1755697832901,-480.0,0.00022101,2]
[380339705,1755697832912,-1201.31,0.00022101,2]
[380339706,1755697832921,-480.0,0.00022101,2]
[380339707,1755697832930,-480.0,0.00022101,2]
[380339708,1755697832944,-480.0,0.00022101,2]
[380339709,1755697832954,-480.0,0.00022101,2]
[380339710,1755697832963,-12687.94051737,0.00022102,2]
[380339711,1755697832973,-1397.48,0.00022263,2]
[380339712,1755697832982,-500.0,0.0002228,2]
[380339713,1755697832992,-501.64261294,0.0002235,2]
[380339714,1755697833001,-500.0,0.0002235,2]
[380339715,1755697833011,-501.14541372,0.0002235,2]
[380339716,1755697833021,-502.10486458,0.0002235,2]
[380339717,1755697833031,-500.0,0.0002235,2]
[380339718,1755697833041,-501.26524356,0.0002235,2]
[380339719,1755697833052,-480.0,0.00022375,2]
[380339720,1755697833064,-480.0,0.00022375,2]
[380339721,1755697833074,-480.0,0.00022375,2]
[380339722,1755697833088,-480.0,0.00022375,2]
[380339723,1755697833098,-480.0,0.00022375,2]
[380339724,1755697833108,-480.0,0.00022375,2]
[380339725,1755697833118,-1201.31,0.00022375,2]
[380339726,1755697833128,-480.0,0.00022375,2]
[380339727,1755697833138,-500.79919152,0.000224,2]
[380339728,1755697833147,-500.0,0.000224,2]
[380339729,1755697833159,-500.0,0.000224,2]
[380339730,1755697833168,-500.0,0.00022414,2]
[380339731,1755697833177,-500.68847206,0.00022414,2]
[380339732,1755697833192,-502.98473716,0.00022414,2]
[380339733,1755697833202,-500.0,0.00022414,2]
[380339734,1755697833212,-501.07116851,0.00022414,2]
[380339735,1755697833222,-271.64496179,0.00022414,2]
[380339736,1755697833232,-500.0,0.00022433,2]
[380339737,1755697833242,-500.0,0.0002244,2]
[380339738,1755697833252,-201.04827771,0.0002244,2]
[380339739,1755697833263,-510.50378099,0.000225,2]
[380339740,1755697833272,-500.58611904,0.000225,2]
[380339741,1755697833282,-501.11504192,0.000225,2]
[380339742,1755697833292,-1397.48,0.00022537,2]
[380339743,1755697833302,-480.0,0.00022649,2]
[380339744,1755697833311,-480.0,0.00022649,2]
[380339745,1755697833321,-480.0,0.00022649,2]
[380339746,1755697833331,-480.0,0.00022649,2]
[380339747,1755697833340,-1201.31,0.00022649,2]
[380339748,1755697833349,-590.53190075,0.00022706,2]
[380339749,1755697833359,-3571.09915495,0.00022794,2]
[380339750,1755697833368,-1397.48,0.00022811,2]
[380339751,1755697833378,-1007.38843515,0.00022828,2]
[380339752,1755697833387,-1000.0,0.00022898,2]
[380339753,1755697833397,-480.0,0.00022923,2]
[380339754,1755697833407,-579.56,0.00022923,2]
[380339755,1755697833417,-362.72,0.00022923,2]
[380339756,1755697833427,-1201.31,0.00022923,2]
[380339757,1755697833440,-1004.29268211,0.00022948,2]
[380339758,1755697833452,-1000.0,0.00022962,2]
[380339759,1755697833463,-1397.48,0.00023085,2]
[380339760,1755697833473,-168.0,0.00023112,2]
[380339761,1755697833483,-166.877545,0.00023182,2]
[380339762,1755697833493,-536.32,0.00023197,2]
[380339763,1755697833503,-1201.31,0.00023197,2]
[380339764,1755697833513,-425.0,0.00023263,2]
[380339765,1755697833523,-151.0,0.00023263,2]
[380339766,1755697833534,-247.58808672,0.00023263,2]
[380339767,1755697833544,-151.0,0.00023263,2]
[380339768,1755697833556,-151.0,0.00023263,2]
[380339769,1755697833566,-158.6,0.00023274,5]
[380339770,1755697833576,-433.0,0.00023277,2]
[380339771,1755697833586,-1397.48,0.00023359,2]
[380339772,1755697833597,-6804.14121146,0.0002338,2]
[380339773,1755697833640,-847.999995,0.0002338,2]
[380339774,1755697833657,-2428.53693353,0.0002338,2]
[380339775,1755697833670,-5973.87782657,0.0002338,2]
[380339776,1755697833683,-13468.64706129,0.0002338,2]
[380339932,1755697838471,-151.0,0.00023263,2]
[380339934,1755697838481,-2721.89998193,0.0002338,2]
[380339946,1755697838584,-1536.62469782,0.0002338,2]
[380339948,1755697838595,-804.1833919,0.0002338,2]
[380340472,1755697843754,-95252.29389476,0.0002338,2]
[380340680,1755697846674,-6295.50756175,0.0002338,2]
[380340752,1755698242707,500.20913652,0.00027397,120]
[380340757,1755698468443,-391.45169507,0.000199,2]
[380340764,1755698701624,166.429071,0.00013699,2]
[380340768,1755698810334,-179.34252224,0.000199,2]
[380340772,1755698940098,160.30771214,0.00019059,2]
[380340773,1755698941980,640.5896177,0.00019059,2]
[380340774,1755698959662,237.37785751,0.00019059,2]
[380340775,1755698961841,948.5619186,0.00019059,2]
[380340776,1755698965678,-158.2593,0.0002648,60]
[380340777,1755698965704,-718.15036961,0.00027,45]
[380340778,1755698965728,-296.76110564,0.00027,60]
[380340779,1755698965758,-1241.50694129,0.00027167,60]
[380340780,1755698965782,-160.0,0.000272,30]
[380340781,1755698965805,-498.4,0.00027266,60]
[380340782,1755698965832,-603846.0,0.0002744,30]
[380340783,1755698965856,-2000.0,0.00027671,120]
[380340784,1755698965883,-1976.53,0.00027945,120]
[380340785,1755698965911,-12687.94051737,0.00028,30]
[380340786,1755698965934,-417.15472785,0.00028,30]
[380340787,1755698965958,-375.94359665,0.00028,30]
[380340788,1755698965982,-528.77847288,0.00028,30]
[380340789,1755698966007,-232.24568399,0.00028,30]
[380340790,1755698966030,-844.05985274,0.00028,30]
[380340791,1755698966056,-2000.0,0.00028219,120]
[380340792,1755698966080,-162.11560893,0.00028329,30]
[380340793,1755698966104,-2000.0,0.00028493,120]
[380340794,1755698966130,-162.11560893,0.0002863,30]
[380340795,1755698966155,-2000.0,0.00028767,120]
[380340796,1755698966179,-162.11560893,0.00028932,30]
[380340797,1755698966204,-301.71058,0.00029,120]
[380340798,1755698966228,-679.43928,0.00029,120]
[380340799,1755698966386,-2000.0,0.00029041,120]
[380340800,1755698966413,-162.11560893,0.00029233,30]
[380340801,1755698966438,-2000.0,0.00029315,120]
[380340802,1755698966464,-162.11560893,0.00029534,30]
[380340803,1755698966487,-2000.0,0.00029589,120]
[380340804,1755698966513,-162.11560893,0.00029836,30]
[380340805,1755698966537,-2000.0,0.00029863,120]
[380340806,1755698966562,-679.43928,0.0003,120]
[380340807,1755698966586,-160.0,0.0003,120]
[380340808,1755698966609,-400.0,0.0003,120]
[380340809,1755698966631,-188.25037584,0.0003,120]
[380340810,1755698966653,-416.78393562,0.0003,30]
[380340811,1755698966677,-12687.94051737,0.0003,120]
[380340812,1755698966699,-1785.54957748,0.0003,120]
[380340813,1755698966722,-417.15472785,0.0003,120]
[380340814,1755698966745,-528.77847288,0.0003,120]
[380340815,1755698966768,-2000.0,0.00030137,120]
[380340816,1755698966792,-251.04683462,0.000308,120]
[380340817,1755698966814,-1038.98,0.000308,30]
[380340818,1755698966839,-157.0,0.00031,120]
[380340819,1755698966862,-679.43928,0.00031,120]
[380340820,1755698966885,-160.0,0.00031,120]
[380340821,1755698966907,-341.73342041,0.00031,100]
[380340822,1755698966930,-350.0,0.00031,60]
[380340823,1755698966953,-160.0,0.00031,120]
[380340824,1755698966976,-417.15472785,0.00031,120]
[380340825,1755698966998,-528.77847288,0.00031,120]
[380340826,1755698967021,-232.24568399,0.00031,120]
[380340827,1755698967043,-232.24568399,0.00031,120]
[380340828,1755698967067,-160.0,0.00031,120]
[380340829,1755698967092,-160.0,0.00031,120]
[380340830,1755698967116,-168.0,0.00031,120]
[380340831,1755698967142,-844.05985274,0.00031,120]
[380340832,1755698967168,-157.0,0.00032,120]
[380340833,1755698967191,-301.71058,0.00032,120]
[380340834,1755698967216,-679.43928,0.00032,120]
[380340835,1755698967240,-500.0,0.00032,120]
[380340836,1755698967264,-1038.98,0.000322,30]
[380340837,1755698967292,-1046.73,0.00032912,60]
[380340838,1755698967316,-157.0,0.00033,120]
[380340839,1755698967338,-679.43928,0.00033,120]
[380340840,1755698967361,-1000.0,0.00033,120]
[380340841,1755698967386,-995.26056428,0.00033,120]
[380340842,1755698967409,-254.58379176,0.00033,30]
[380340843,1755698967434,-1046.73,0.00033012,60]
[380340844,1755698967457,-1046.73,0.00033112,60]
[380340845,1755698967481,-1046.73,0.00033212,60]
[380340846,1755698967504,-1046.73,0.00033312,60]
[380340847,1755698967528,-1046.73,0.00033412,60]
[380340848,1755698967552,-1046.73,0.00033512,60]
[380340849,1755698967574,-1038.98,0.000336,30]
[380340850,1755698967599,-1046.73,0.00033612,60]
[380340851,1755698967624,-1046.73,0.00033712,60]
[380340852,1755698967651,-1046.73,0.00033812,60]
[380340853,1755698967675,-1046.73,0.00033912,60]
[380340854,1755698967699,-300.0,0.00033939,60]
[380340855,1755698967723,-157.0,0.00034,120]
[380340856,1755698967745,-679.43928,0.00034,120]
[380340857,1755698967769,-500.0,0.00034,120]
[380340858,1755698967792,-201.87634263,0.00034,30]
[380340859,1755698967816,-1046.73,0.00034012,60]
[380340860,1755698967841,-1046.73,0.00034112,60]
[380340861,1755698967865,-1046.73,0.00034212,60]
[380340862,1755698967894,-1046.73,0.00034312,60]
[380340863,1755698967918,-1047.29090486,0.00034412,60]
[380340864,1755698967942,-300.0,0.00034624,60]
[380340865,1755698967968,-301.71058,0.00035,120]
[380340866,1755698967993,-679.43934,0.00035,120]
[380340867,1755698968018,-1041.73663687,0.00035,120]
[380340868,1755698968040,-502.109824,0.00035,120]
[380340869,1755698968064,-235.35,0.00035,69]
[380340870,1755698968087,-1038.98,0.00035,120]
[380340871,1755698968112,-157.0,0.000351,120]
[380340872,1755698968141,-444.49556887,0.00035308,60]
[380340873,1755698968165,-500.0,0.00036,120]
[380340874,1755698968189,-5807.61407108,0.00036,120]
[380340875,1755698968213,-400000.0,0.00036,60]
[380340876,1755698968237,-157.0,0.000361,120]
[380340877,1755698968261,-1038.98,0.000364,120]
[380340878,1755698968285,-599.19158719,0.000365,120]
[380340879,1755698968309,-225.21,0.0003666,30]
[380340880,1755698968332,-3805.49605969,0.00036896,60]
[380340881,1755698968355,-157.0,0.000371,120]
[380340882,1755698968381,-156.9,0.000375,112]
[380340883,1755698968405,-1038.98,0.000378,120]
[380340884,1755698968431,-455.46,0.00037987,30]
[380340885,1755698968453,-500.0,0.00038,120]
[380340886,1755698968477,-231.91758023,0.00038,30]
[380340887,1755698968501,-157.0,0.000381,120]
[380340888,1755698968524,-1987.85794017,0.000382,120]
[380340889,1755698968547,-513.39883372,0.000387,120]
[380340890,1755698968573,-1000.0,0.00038826,30]
[380340891,1755698968599,-244.0,0.00038826,30]
[380340892,1755698968621,-4857.48944221,0.00039,60]
[380340893,1755698968646,-266538.33744008,0.00039,120]
[380340894,1755698968670,-157.0,0.000391,120]
[380340895,1755698968693,-756.45802109,0.00039188,90]
[380340896,1755698968716,-1038.98,0.000392,120]
[380340897,1755698968739,-1162.13225237,0.00039877,120]
[380340898,1755698968763,-500.0,0.0004,120]
[380340899,1755698968785,-1111.34262531,0.0004,30]
[380340900,1755698968809,-2716.67678712,0.0004,30]
[380340901,1755698968832,-526.65172687,0.0004,120]
[380340902,1755698968855,-1500.15222285,0.0004,120]
[380340903,1755698968878,-422.39317301,0.0004,120]
[380340904,1755698968904,-381.15555827,0.0004,30]
[380340905,1755698968927,-417.15472785,0.0004,120]
[380340906,1755698969064,-160.0,0.0004,120]
[380340907,1755698969091,-2000.0,0.0004,120]
[380340908,1755698969117,-157.0,0.000401,120]
[380340909,1755698969144,-82755.96279475,0.0004027,120]
[380340910,1755698969169,-1038.98,0.000406,120]
[380340911,1755698969194,-8041.98,0.00041,30]
[380340912,1755698969217,-1000.0,0.00041,120]
[380340913,1755698969242,-369.9,0.00041041,120]
[380340914,1755698969267,-337.84,0.00041096,120]
[380340915,1755698969291,-157.0,0.000411,120]
[380340916,1755698969318,-1100.0,0.00041199,60]
[380340917,1755698969342,-369.9,0.00041642,120]
[380340918,1755698969366,-500.0,0.00041695,30]
[380340919,1755698969397,-1100.0,0.00041747,60]
[380340920,1755698969426,-200.0,0.000419,120]
[380340921,1755698969450,-500.0,0.00042,120]
[380340922,1755698969477,-1038.98,0.00042,120]
[380340923,1755698969503,-157.0,0.000422,120]
[380340924,1755698969530,-369.9,0.00042243,120]
[380340925,1755698969556,-658.22739151,0.0004235,39]
[380340926,1755698969580,-1767.08889627,0.000424,120]
[380340927,1755698969605,-500.0,0.00042405,60]
[380340928,1755698969628,-500.0,0.00042405,60]
[380340929,1755698969663,-1000.0,0.00042709,30]
[380340930,1755698969692,-492.0,0.00042709,30]
[380340931,1755698969715,-2585.22563256,0.000428,30]
[380340932,1755698969741,-151.0,0.00042842,30]
[380340933,1755698969766,-151.0,0.00042842,30]
[380340934,1755698969790,-151.0,0.00042842,30]
[380340935,1755698969813,-18502.69577858,0.00042842,30]
[380340936,1755698969837,-1100.0,0.00042843,60]
[380340937,1755698969862,-369.9,0.00042844,120]
[380340938,1755698969889,-1000.0,0.00043,120]
[380340939,1755698969912,-1876.09061714,0.00043,120]
[380340940,1755698969936,-506.78,0.00043,120]
[380340941,1755698969960,-4220.0,0.00043,120]
[380340942,1755698969984,-157.0,0.000432,120]
[380340943,1755698970009,-658.22739151,0.00043286,41]
[380340944,1755698970032,-373.17412531,0.00043305,60]
[380340945,1755698970056,-1038.98,0.000434,120]
[380340946,1755698970079,-1000.0,0.000438,90]
[380340947,1755698971766,609.36883365,0.0004235,39]
[380340948,1755698972085,609.36883365,0.00041415,37]
[380340949,1755698972197,609.36883365,0.00043286,41]
[380340950,1755698972719,609.36883365,0.00039544,33]
[380340952,1755698990417,-417.15472785,0.0003,120]
[380340953,1755698990450,-417.15472785,0.00031,120]
[380340954,1755698990494,-417.15472785,0.0004,120]
[380340955,1755698990526,-503.27780592,0.00043905,60]
[380340956,1755698990553,-1100.0,0.00043939,60]
[380340957,1755698990580,-500.0,0.00044,120]
[380340958,1755698990608,-157.0,0.000442,120]
[380340959,1755698990636,-609.36883365,0.00044221,43]
[380340960,1755698990663,-1038.98,0.000448,120]
[380340961,1755698990689,-1000.0,0.00044999,120]
[380340962,1755698990716,-300.90136408,0.00044999,90]
[380340963,1755698990742,-151.0,0.00044999,90]
[380340964,1755698990769,-151.0,0.00044999,90]
[380340965,1755698990982,-151.0,0.00044999,90]
[380340966,1755698991020,-17842.522448,0.00044999,90]
[380340967,1755698991048,-205.17310296,0.00045,90]
[380340968,1755698991077,-2021.69680166,0.00045,120]
[380340969,1755698991105,-1100.0,0.00045035,60]
[380340970,1755698991134,-609.36883365,0.00045156,45]
[380340971,1755698991166,-300.0,0.00045198,73]
[380340972,1755698991193,-151.0,0.00045198,73]
[380340973,1755698991220,-151.0,0.00045198,73]
[380340974,1755698991245,-151.0,0.00045198,73]
[380340975,1755698991271,-151.0,0.00045198,73]
[380340976,1755698991296,-151.0,0.00045198,73]
[380340977,1755698991321,-151.0,0.00045198,73]
[380340978,1755698991345,-17205.904,0.00045198,73]
[380340979,1755698991371,-157.0,0.000452,120]
[380340980,1755698991395,-500.0,0.000452,60]
[380340981,1755698991426,-500.0,0.000452,60]
[380340982,1755698991452,-500.0,0.000452,60]
[380340983,1755698991477,-500.0,0.000452,60]
[380340984,1755698991500,-500.0,0.000452,60]
[380340985,1755698991525,-500.0,0.000452,60]
[380340986,1755698991548,-500.0,0.000452,60]
[380340987,1755698991572,-300.0,0.00045684,60]
[380340988,1755698991596,-151.0,0.00045684,60]
[380340989,1755698991619,-151.0,0.00045684,60]
[380340990,1755698991641,-151.0,0.00045684,60]
[380340991,1755698991668,-151.0,0.00045684,60]
[380340992,1755698991692,-151.0,0.00045684,60]
[380340993,1755698991717,-151.0,0.00045684,60]
[380340994,1755698991740,-1888.0,0.00045684,60]
[380340995,1755698991764,-16592.0,0.00045684,60]
[380340996,1755698991788,-1957.856,0.00045684,60]
[380340997,1755698991813,-2030.296672,0.00045684,60]
[380340998,1755698991847,-2105.41764886,0.00045684,60]
[380340999,1755698991878,-500.0,0.00046,120]
[380341000,1755698991907,-609.36883365,0.00046092,47]
[380341001,1755698991934,-1100.0,0.00046131,60]
[380341002,1755698991960,-20233.0,0.00046192,120]
[380341003,1755698991988,-300.0,0.00046199,120]
[380341004,1755698992013,-151.0,0.00046199,120]
[380341005,1755698992038,-151.0,0.00046199,120]
[380341006,1755698992063,-151.0,0.00046199,120]
[380341007,1755698992087,-151.0,0.00046199,120]
[380341008,1755698992110,-151.0,0.00046199,120]
[380341009,1755698992135,-151.0,0.00046199,120]
[380341010,1755698992162,-16000.0,0.00046199,120]
[380341011,1755698992186,-151.28724863,0.00046199,120]
[380341012,1755698992210,-151.0,0.00046199,120]
[380341013,1755698992234,-156.14054785,0.00046199,120]
[380341014,1755698992257,-157.0,0.000462,120]
[380341015,1755698992281,-2000.0,0.000469,120]
[380341016,1755698992310,-1000.0,0.0004698,60]
[380341017,1755698992337,-791.0,0.0004698,60]
[380341018,1755698992363,-609.36883365,0.00047027,49]
[380341019,1755698992386,-157.0,0.000472,120]
[380341020,1755698992412,-1100.0,0.00047227,60]
[380341021,1755698992448,-1000.0,0.00047999,120]
[380341022,1755698992475,-500.0,0.00048,120]